lending/lending_fUSD_20250102
["ID","MTS","AMOUNT","RATE_DAILY","PERIOD"]
[347443712,1735817457164,1233.14,0.00024536,120]
[347443713,1735817457219,1300.0,9.2e-05,3]
[347443714,1735817457293,159.416714,0.00024536,120]
[347443715,1735817457371,665.69,0.00024536,120]
[347443716,1735817457485,665.69,0.00024536,120]
[347443717,1735817457633,665.69,0.00024536,120]
[347443718,1735817457954,665.69,0.00024536,120]
[347443719,1735817458187,665.69,0.00024536,120]
[347443720,1735817458336,1233.14,0.00024536,120]
[347443721,1735817458795,4174.74,0.00024536,120]
[347443722,1735817458962,1233.14,0.00024536,120]
[347443723,1735817459041,1800.0,9.3e-05,3]
[347443724,1735817459113,4174.74,0.00024536,120]
[347443725,1735817459182,665.69,0.00024536,120]
[347443726,1735817459244,500.0,0.00024536,120]
[347443727,1735817459329,4174.74,0.00024536,120]
[347443728,1735817459443,665.69,0.00024536,120]
[347443729,1735817459516,500.0,0.00024536,120]
[347443730,1735817459591,4174.74,0.00024536,120]
[347443731,1735817459768,665.69,0.00024536,120]
[347443732,1735817459853,1233.14,0.00024536,120]
[347443733,1735817459927,500.0,0.00024536,120]
[347443734,1735817459999,500.0,0.00024536,120]
[347443735,1735817460074,4174.74,0.00024536,120]
[347443736,1735817460148,665.69,0.00024536,120]
[347443737,1735817460233,500.0,0.00024536,120]
[347443738,1735817460308,500.0,0.00024536,120]
[347443739,1735817460390,4174.74,0.00024536,120]
[347443740,1735817460464,665.69,0.00024536,120]
[347443741,1735817460587,500.0,0.00024536,120]
[347443742,1735817460656,500.0,0.00024536,120]
[347443743,1735817460724,4174.74,0.00024536,120]
[347443744,1735817460793,665.69,0.00024536,120]
[347443745,1735817460873,500.0,0.00024536,120]
[347443746,1735817460947,500.0,0.00024536,120]
[347443747,1735817461023,4174.74,0.00024536,120]
[347443748,1735817461098,665.69,0.00024536,120]
[347443749,1735817461283,528.98651725,0.00024536,120]
[347443750,1735817461353,500.0,0.00024536,120]
[347443751,1735817461423,665.69,0.00024536,120]
[347443752,1735817461505,4174.74,0.00024536,120]
[347443753,1735817461577,542.93489489,0.00024536,120]
[347443754,1735817461616,2200.0,9.4e-05,3]
[347443755,1735817461760,665.69,0.00024536,120]
[347443756,1735817461826,4174.74,0.00024536,120]
[347443757,1735817462319,1233.14,0.00024536,120]
[347443758,1735817462397,665.69,0.00024536,120]
[347443759,1735817462705,4174.74,0.00024536,120]
[347443760,1735817462800,665.69,0.00024536,120]
[347443761,1735817462888,4174.74,0.00024536,120]
[347443762,1735817462961,665.69,0.00024536,120]
[347443763,1735817463055,4174.74,0.00024536,120]
[347443764,1735817463244,665.69,0.00024536,120]
[347443765,1735817463325,1233.14,0.00024536,120]
[347443766,1735817463410,4174.74,0.00024536,120]
[347443767,1735817463500,665.69,0.00024536,120]
[347443768,1735817463579,487.2816939,0.00024536,120]
[347443769,1735817463764,4174.74,0.00024536,120]
[347443770,1735817463964,4174.74,0.00024536,120]
[347443771,1735817464043,1233.14,0.00024536,120]
[347443772,1735817464137,500.0,0.00024536,120]
[347443773,1735817464217,4174.74,0.00024536,120]
[347443774,1735817464347,500.0,0.00024536,120]
[347443775,1735817464431,3509.05,0.00024536,120]
[347443776,1735817464511,400.0,9.5e-05,3]
[347443777,1735817464588,4174.74,0.00024536,120]
[347443778,1735817464664,500.0,0.00024536,120]
[347443779,1735817464757,3509.05,0.00024536,120]
[347443780,1735817464836,1233.14,0.00024536,120]
[347443781,1735817464928,500.0,0.00024536,120]
[347443782,1735817464966,-500.0,9.963e-05,2]
[347443783,1735817464991,-99500.0,9.99e-05,2]
[347443784,1735817465082,500.0,0.00024536,120]
[347443785,1735817465213,500.0,0.00024536,120]
[347443786,1735817465294,3509.05,0.00024536,120]
[347443787,1735817465404,392.12,0.00024536,120]
[347443788,1735817465638,1233.14,0.00024536,120]
[347443789,1735817465681,400.0,9.6e-05,3]
[347443790,1735817466025,2156.0,0.00024536,120]
[347443791,1735817466287,2156.0,0.00024536,120]
[347443792,1735817466494,3509.05,0.00024536,120]
[347443793,1735817466638,2156.0,0.00024536,120]
[347443794,1735817466901,1233.14,0.00024536,120]
[347443795,1735817466996,2156.0,0.00024536,120]
[347443796,1735817467081,4174.74,0.00024536,120]
[347443797,1735817467165,3509.05,0.00024536,120]
[347443798,1735817467248,2156.0,0.00024536,120]
[347443799,1735817467327,4174.74,0.00024536,120]
[347443800,1735817467409,665.92764405,0.00024536,120]
[347443801,1735817467526,2156.0,0.00024536,120]
[347443802,1735817467609,500.0,0.00024536,120]
[347443803,1735817467680,4174.74,0.00024536,120]
[347443804,1735817467760,2156.0,0.00024536,120]
[347443805,1735817467835,1233.14,0.00024536,120]
[347443806,1735817467913,500.0,0.00024536,120]
[347443807,1735817467994,4174.74,0.00024536,120]
[347443808,1735817468103,2156.0,0.00024536,120]
[347443809,1735817468174,500.0,0.00024536,120]
[347443810,1735817468244,4174.74,0.00024536,120]
[347443811,1735817468322,3509.05,0.00024536,120]
[347443812,1735817468423,2156.0,0.00024536,120]
[347443813,1735817468500,4174.90388347,0.00024536,120]
[347443814,1735817468571,500.0,0.00024536,120]
[347443815,1735817468690,2156.0,0.00024536,120]
[347443816,1735817468987,1233.14,0.00024536,120]
[347443817,1735817469075,500.0,0.00024536,120]
[347443818,1735817469266,2156.0,0.00024536,120]
[347443819,1735817469339,500.0,0.00024536,120]
[347443820,1735817469437,2156.0,0.00024536,120]
[347443821,1735817469503,500.0,0.00024536,120]
[347443822,1735817469598,2156.0,0.00024536,120]
[347443823,1735817469672,500.0,0.00024536,120]
[347443824,1735817469747,3509.05,0.00024536,120]
[347443825,1735817469838,2156.0,0.00024536,120]
[347443826,1735817469915,500.0,0.00024536,120]
[347443827,1735817470022,500.0,0.00024536,120]
[347443828,1735817470094,2156.0,0.00024536,120]
[347443829,1735817470185,1233.14,0.00024536,120]
[347443830,1735817470291,500.0,0.00024536,120]
[347443831,1735817470370,2156.0,0.00024536,120]
[347443832,1735817470489,2156.0,0.00024536,120]
[347443833,1735817470687,2156.0,0.00024536,120]
[347443834,1735817470761,1233.14,0.00024536,120]
[347443835,1735817470856,500.0,0.00024536,120]
[347443836,1735817470929,3509.05,0.00024536,120]
[347443837,1735817471001,2156.0,0.00024536,120]
[347443838,1735817471073,500.0,0.00024536,120]
[347443839,1735817471177,2156.0,0.00024536,120]
[347443840,1735817471249,500.0,0.00024536,120]
[347443841,1735817471320,786.77,0.00024536,120]
[347443842,1735817471386,500.0,0.00024536,120]
[347443843,1735817471457,1233.14,0.00024536,120]
[347443844,1735817471556,2156.0,0.00024536,120]
[347443845,1735817471631,786.77,0.00024536,120]
[347443846,1735817471703,500.0,0.00024536,120]
[347443847,1735817471784,3509.05,0.00024536,120]
[347443848,1735817471881,2156.0,0.00024536,120]
[347443849,1735817471961,786.77,0.00024536,120]
[347443850,1735817472044,500.0,0.00024536,120]
[347443851,1735817472157,2156.0,0.00024536,120]
[347443852,1735817472701,500.0,0.00024536,120]
[347443853,1735817472782,786.77,0.00024536,120]
[347443854,1735817472853,500.0,0.00024536,120]
[347443855,1735817472925,2156.03913228,0.00024536,120]
[347443856,1735817472994,1233.14,0.00024536,120]
[347443857,1735817473122,786.77,0.00024536,120]
[347443858,1735817473203,500.0,0.00024536,120]
[347443859,1735817473549,3509.05,0.00024536,120]
[347443860,1735817473647,500.0,0.00024536,120]
[347443861,1735817473712,786.77,0.00024536,120]
[347443862,1735817473779,500.0,0.00024536,120]
[347443863,1735817473849,395.34473456,0.00024536,120]
[347443864,1735817473966,500.0,0.00024536,120]
[347443865,1735817474044,500.0,0.00024536,120]
[347443866,1735817474111,1233.37182039,0.00024536,120]
[347443867,1735817474179,786.77,0.00024536,120]
[347443868,1735817474252,500.0,0.00024536,120]
[347443869,1735817474279,-400.0,9.7e-05,3]
[347443870,1735817474300,-400.0,9.8e-05,3]
[347443871,1735817474320,-801.0,9.9e-05,3]
[347443872,1735817474344,-83039.0,9.99e-05,2]
[347443873,1735817474420,500.0,0.00024536,120]
[347443874,1735817474535,369.04689187,0.00024536,120]
[347443875,1735817474671,786.77,0.00024536,120]
[347443876,1735817474742,500.0,0.00024536,120]
[347443877,1735817474823,500.0,0.00024536,120]
[347443878,1735817474902,786.77,0.00024536,120]
[347443879,1735817474984,395.42245832,0.00024536,120]
[347443880,1735817475312,3509.05,0.00024536,120]
[347443881,1735817475386,500.0,0.00024536,120]
[347443882,1735817475478,786.77,0.00024536,120]
[347443883,1735817475545,500.0,0.00024536,120]
[347443884,1735817475627,786.77,0.00024536,120]
[347443885,1735817475868,500.0,0.00024536,120]
[347443886,1735817476007,786.77,0.00024536,120]
[347443887,1735817476080,3509.05,0.00024536,120]
[347443888,1735817476159,500.0,0.00024536,120]
[347443889,1735817476242,786.77,0.00024536,120]
[347443890,1735817476313,500.0,0.00024536,120]
[347443891,1735817476395,786.77,0.00024536,120]
[347443892,1735817476520,500.0,0.00024536,120]
[347443893,1735817476620,786.77,0.00024536,120]
[347443894,1735817476705,541.97,0.00024536,120]
[347443895,1735817476782,3509.05,0.00024536,120]
[347443896,1735817476871,786.77,0.00024536,120]
[347443897,1735817477055,786.77,0.00024536,120]
[347443898,1735817477133,3509.05,0.00024536,120]
[347443899,1735817477213,786.77,0.00024536,120]
[347443900,1735817477288,786.77,0.00024536,120]
[347443901,1735817477368,3509.05,0.00024536,120]
[347443902,1735817477458,786.77,0.00024536,120]
[347443903,1735817477548,786.77,0.00024536,120]
[347443904,1735817477644,786.77,0.00024536,120]
[347443905,1735817477841,3509.05,0.00024536,120]
[347443906,1735817477913,786.77,0.00024536,120]
[347443907,1735817478103,786.85890041,0.00024536,120]
[347443908,1735817478385,3509.05,0.00024536,120]
[347443909,1735817479069,632.17,0.00024536,120]
[347443910,1735817479293,632.17,0.00024536,120]
[347443911,1735817479858,632.17,0.00024536,120]
[347443912,1735817479938,530.19,0.00024536,120]
[347443913,1735817480062,3509.05,0.00024536,120]
[347443914,1735817480139,530.19,0.00024536,120]
[347443915,1735817480211,632.17,0.00024536,120]
[347443916,1735817480397,530.19,0.00024536,120]
[347443917,1735817480474,500.0,0.00024536,120]
[347443918,1735817480655,530.19,0.00024536,120]
[347443919,1735817480733,632.17,0.00024536,120]
[347443920,1735817480848,530.19,0.00024536,120]
[347443921,1735817481031,632.17,0.00024536,120]
[347443922,1735817481171,3509.05,0.00024536,120]
[347443923,1735817481239,632.17,0.00024536,120]
[347443924,1735817481351,632.17,0.00024536,120]
[347443925,1735817481424,1907.35,0.00024536,120]
[347443926,1735817481500,318.35179854,0.00024536,120]
[347443927,1735817481599,530.19,0.00024536,120]
[347443928,1735817481768,632.17,0.00024536,120]
[347443929,1735817481846,3509.05,0.00024536,120]
[347443930,1735817481935,530.19,0.00024536,120]
[347443931,1735817482018,632.17,0.00024536,120]
[347443932,1735817482102,1907.35,0.00024536,120]
[347443933,1735817482176,500.0,0.00024536,120]
[347443934,1735817482248,530.19,0.00024536,120]
[347443935,1735817482320,1086.72,0.00024536,120]
[347443936,1735817482399,632.17,0.00024536,120]
[347443937,1735817482487,3509.05,0.00024536,120]
[347443938,1735817482559,530.19,0.00024536,120]
[347443939,1735817482632,500.0,0.00024536,120]
[347443940,1735817483126,632.17,0.00024536,120]
[347443941,1735817483205,1086.72,0.00024536,120]
[347443942,1735817483273,500.0,0.00024536,120]
[347443943,1735817483345,1907.35,0.00024536,120]
[347443944,1735817483424,632.17,0.00024536,120]
[347443945,1735817483499,530.19,0.00024536,120]
[347443946,1735817483575,500.0,0.00024536,120]
[347443947,1735817483646,500.0,0.00024536,120]
[347443948,1735817483719,3509.05,0.00024536,120]
[347443949,1735817483841,632.17,0.00024536,120]
[347443950,1735817483980,1907.35,0.00024536,120]
[347443951,1735817484058,1086.72,0.00024536,120]
[347443952,1735817484129,500.0,0.00024536,120]
[347443953,1735817484198,500.0,0.00024536,120]
[347443954,1735817484276,632.17,0.00024536,120]
[347443955,1735817484357,530.19,0.00024536,120]
[347443956,1735817484685,3509.05,0.00024536,120]
[347443957,1735817484763,500.0,0.00024536,120]
[347443958,1735817484839,500.0,0.00024536,120]
[347443959,1735817484925,632.17,0.00024536,120]
[347443960,1735817485003,530.19,0.00024536,120]
[347443961,1735817485104,1907.35,0.00024536,120]
[347443962,1735817485178,500.0,0.00024536,120]
[347443963,1735817485261,500.0,0.00024536,120]
[347443964,1735817485343,632.17,0.00024536,120]
[347443965,1735817485415,530.19,0.00024536,120]
[347443966,1735817485487,1086.72,0.00024536,120]
[347443967,1735817485563,3509.11323161,0.00024536,120]
[347443968,1735817485632,632.17,0.00024536,120]
[347443969,1735817485700,500.0,0.00024536,120]
[347443970,1735817485771,500.0,0.00024536,120]
[347443971,1735817485839,530.19,0.00024536,120]
[347443972,1735817485924,1086.72,0.00024536,120]
[347443973,1735817486031,500.0,0.00024536,120]
[347443974,1735817486172,632.17,0.00024536,120]
[347443975,1735817486244,500.0,0.00024536,120]
[347443976,1735817486315,530.19,0.00024536,120]
[347443977,1735817486388,1907.35,0.00024536,120]
[347443978,1735817486474,632.17,0.00024536,120]
[347443979,1735817486555,530.19,0.00024536,120]
[347443980,1735817486626,500.0,0.00024536,120]
[347443981,1735817486719,500.0,0.00024536,120]
[347443982,1735817486790,1086.72,0.00024536,120]
[347443983,1735817486866,632.17,0.00024536,120]
[347443984,1735817486940,500.0,0.00024536,120]
[347443985,1735817487017,500.0,0.00024536,120]
[347443986,1735817487093,1907.35,0.00024536,120]
[347443987,1735817487160,530.19,0.00024536,120]
[347443988,1735817487232,632.17,0.00024536,120]
[347443989,1735817487301,500.0,0.00024536,120]
[347443990,1735817487371,500.0,0.00024536,120]
[347443991,1735817487443,530.19,0.00024536,120]
[347443992,1735817487514,500.0,0.00024536,120]
[347443993,1735817487582,632.17,0.00024536,120]
[347443994,1735817487653,500.0,0.00024536,120]
[347443995,1735817487793,530.19,0.00024536,120]
[347443996,1735817487871,500.0,0.00024536,120]
[347443997,1735817487943,632.3570108,0.00024536,120]
[347443998,1735817488028,295.05,0.00024536,120]
[347443999,1735817488110,530.19,0.00024536,120]
[347444000,1735817488197,500.0,0.00024536,120]
[347444001,1735817488320,530.19,0.00024536,120]
[347444002,1735817488400,500.0,0.00024536,120]
[347444003,1735817488474,530.19,0.00024536,120]
[347444004,1735817488564,500.0,0.00024536,120]
[347444005,1735817488646,1086.72,0.00024536,120]
[347444006,1735817488717,530.19,0.00024536,120]
[347444007,1735817488790,500.0,0.00024536,120]
[347444008,1735817488919,530.39060036,0.00024536,120]
[347444009,1735817488993,1907.35,0.00024536,120]
[347444010,1735817489084,542.10067007,0.00024536,120]
[347444011,1735817489303,2404.59,0.00024536,120]
[347444012,1735817489485,2404.59,0.00024536,120]
[347444013,1735817489559,1086.72,0.00024536,120]
[347444014,1735817489632,1907.35,0.00024536,120]
[347444015,1735817489704,2404.59,0.00024536,120]
[347444016,1735817489778,1086.72,0.00024536,120]
[347444017,1735817489855,2404.59,0.00024536,120]
[347444018,1735817489986,2404.59,0.00024536,120]
[347444019,1735817490371,2404.59,0.00024536,120]
[347444020,1735817490450,1086.72,0.00024536,120]
[347444021,1735817490542,1907.35,0.00024536,120]
[347444022,1735817490667,2404.59,0.00024536,120]
[347444023,1735817490764,2404.59,0.00024536,120]
[347444024,1735817490838,905.97,0.00024536,120]
[347444025,1735817490957,2404.59,0.00024536,120]
[347444026,1735817491039,905.97,0.00024536,120]
[347444027,1735817491162,1086.72,0.00024536,120]
[347444028,1735817491231,1907.35,0.00024536,120]
[347444029,1735817491310,2404.59,0.00024536,120]
[347444030,1735817491384,905.97,0.00024536,120]
[347444031,1735817491467,905.97,0.00024536,120]
[347444032,1735817491534,2404.59,0.00024536,120]
[347444033,1735817491635,2404.59,0.00024536,120]
[347444034,1735817491708,2404.59,0.00024536,120]
[347444035,1735817491776,905.97,0.00024536,120]
[347444036,1735817491854,2404.59,0.00024536,120]
[347444037,1735817491929,1907.35,0.00024536,120]
[347444038,1735817492004,1086.72,0.00024536,120]
[347444039,1735817492079,2404.59,0.00024536,120]
[347444040,1735817492156,2404.59,0.00024536,120]
[347444041,1735817492234,905.97,0.00024536,120]
[347444042,1735817492308,2404.59,0.00024536,120]
[347444043,1735817492381,905.97,0.00024536,120]
[347444044,1735817492454,2430.84,0.00024536,120]
[347444045,1735817492527,1086.72,0.00024536,120]
[347444046,1735817492640,905.97,0.00024536,120]
[347444047,1735817492712,1907.35,0.00024536,120]
[347444048,1735817492784,2404.59,0.00024536,120]
[347444049,1735817492954,905.97,0.00024536,120]
[347444050,1735817493024,2404.59,0.00024536,120]
[347444051,1735817493106,2430.84,0.00024536,120]
[347444052,1735817493578,2404.59,0.00024536,120]
[347444053,1735817493656,905.97,0.00024536,120]
[347444054,1735817493728,1907.35,0.00024536,120]
[347444055,1735817493804,1086.72,0.00024536,120]
[347444056,1735817493879,2404.59,0.00024536,120]
[347444057,1735817494040,2404.59,0.00024536,120]
[347444058,1735817494115,905.97,0.00024536,120]
[347444059,1735817494188,1729.21388555,0.00024536,120]
[347444060,1735817494264,222.039,9.49e-05,2]
[347444061,1735817514954,-1000.0,9.7e-05,2]
[347444062,1735817514976,-6657.55008556,9.79e-05,2]
[347444063,1735817514998,-500.0,9.799e-05,2]
[347444064,1735817515019,-190.39,9.936e-05,2]
[347444065,1735817515043,-5128.6016829,9.986e-05,2]
[347444066,1735817515070,-20523.45823154,9.99e-05,2]
[347444067,1735817522705,1000.0,9.535e-05,2]
[347444068,1735817524449,3100.0,8.439e-05,2]
[347444069,1735817632666,1286.76,9.552e-05,2]
[347444070,1735817681355,673.45,9.556e-05,2]
[347444071,1735817699252,411.27,8.219e-05,2]
[347444072,1735817730935,250.0,9.535e-05,2]
[347444073,1735817906963,-522.25,9.623e-05,2]
[347444074,1735817906985,-353.166,9.7e-05,2]
[347444075,1735817907006,-4379.6962,9.7e-05,2]
[347444076,1735817907027,-1000.0,9.7e-05,2]
[347444077,1735817907049,-3100.0,9.809e-05,2]
[347444078,1735817907071,-500.0,9.963e-05,2]
[347444079,1735817907094,-242.4644044,9.986e-05,2]
[347444080,1735817907118,-7842.4540907,9.986e-05,2]
[347444081,1735817907148,-230.72061521,9.989e-05,2]
[347444082,1735817907173,-500.0,9.989e-05,2]
[347444083,1735817907194,-455.07318617,9.989e-05,2]
[347444084,1735817907217,-605.27574473,9.989e-05,2]
[347444085,1735817907242,-52768.89975879,9.99e-05,2]
[347444086,1735817942590,2600.0,9.535e-05,2]
[347444088,1735818060541,2808.01,9.519e-05,2]
[347444089,1735818105054,4339.09,8.856e-05,2]
[347444093,1735818179236,212.965,9.49e-05,2]
[347444094,1735818245767,1000.0,8.857e-05,2]
[347444095,1735818326048,250.0,8.857e-05,2]
[347444096,1735818382299,1855.69,8.857e-05,2]
[347444097,1735818443279,261.12,8.856e-05,2]
[347444098,1735818602438,390.7,8.219e-05,2]
[347444100,1735818632446,-150.0,9.699e-05,2]
[347444101,1735818632456,-150.0,9.715e-05,2]
[347444102,1735818632465,-71.35,9.716e-05,2]
[347444103,1735818632478,-78.65,9.716e-05,2]
[347444104,1735818632487,-150.0,9.72e-05,2]
[347444105,1735818632497,-146.54733601,9.72e-05,2]
[347444106,1735818632774,-1600.56370911,9.72e-05,2]
[347444107,1735818632789,-225.50895488,9.72e-05,2]
[347444108,1735818632798,-150.0,9.723e-05,2]
[347444109,1735818632808,-150.0,9.724e-05,2]
[347444110,1735818632818,-150.0,9.728e-05,2]
[347444111,1735818632829,-150.0,9.731e-05,2]
[347444112,1735818632838,-132.04662299,9.736e-05,2]
[347444113,1735818632849,-17.95337701,9.736e-05,2]
[347444114,1735818632858,-150.0,9.737e-05,2]
[347444115,1735818632867,-150.0,9.737e-05,2]
[347444116,1735818632877,-150.0,9.741e-05,2]
[347444117,1735818632886,-150.0,9.743e-05,2]
[347444118,1735818632896,-150.0,9.744e-05,2]
[347444119,1735818632905,-150.0,9.746e-05,2]
[347444120,1735818632915,-150.0,9.747e-05,2]
[347444121,1735818632924,-150.0,9.748e-05,2]
[347444122,1735818632934,-150.0,9.748e-05,2]
[347444123,1735818632943,-150.0,9.751e-05,2]
[347444124,1735818632953,-150.0,9.753e-05,2]
[347444125,1735818632962,-300.0,9.759e-05,2]
[347444126,1735818632971,-150.0,9.76e-05,2]
[347444127,1735818632981,-182.33,9.76e-05,2]
[347444128,1735818632990,-300.52,9.76e-05,2]
[347444129,1735818632999,-150.0,9.76e-05,2]
[347444130,1735818633009,-1309.53,9.76e-05,2]
[347444131,1735818633019,-437.4,9.76e-05,2]
[347444132,1735818633029,-551.33,9.76e-05,2]
[347444133,1735818633039,-1542.5,9.76e-05,2]
[347444134,1735818633049,-300.0,9.76e-05,2]
[347444135,1735818633059,-873.48,9.76e-05,2]
[347444136,1735818633069,-150.0,9.76e-05,2]
[347444138,1735818633078,-150.0,9.76e-05,2]
[347444140,1735818633089,-1843.95,9.76e-05,2]
[347444142,1735818633102,-150.0,9.76e-05,2]
[347444144,1735818633112,-150.0,9.76e-05,2]
[347444146,1735818633122,-150.0,9.76e-05,2]
[347444147,1735818633132,-150.0,9.76e-05,2]
[347444148,1735818633142,-150.0,9.76e-05,2]
[347444149,1735818633155,-150.0,9.76e-05,2]
[347444150,1735818633165,-150.0,9.76e-05,2]
[347444151,1735818633175,-150.0,9.76e-05,2]
[347444152,1735818633185,-150.0,9.76e-05,2]
[347444153,1735818633196,-74.02806467,9.76e-05,2]
[347444154,1735818633208,-75.97193533,9.76e-05,2]
[347444155,1735818633219,-150.0,9.761e-05,2]
[347444156,1735818633229,-116.72191262,9.764e-05,2]
[347444157,1735818633243,-33.27808738,9.764e-05,2]
[347444158,1735818633252,-150.0,9.765e-05,2]
[347444159,1735818633262,-73.15920542,9.765e-05,2]
[347444160,1735818633549,-76.84079458,9.765e-05,2]
[347444161,1735818633560,-150.0,9.767e-05,2]
[347444162,1735818633570,-150.0,9.77e-05,2]
[347444163,1735818633580,-150.0,9.772e-05,2]
[347444164,1735818633590,-150.0,9.772e-05,2]
[347444165,1735818633599,-150.0,9.774e-05,2]
[347444166,1735818633609,-150.0,9.775e-05,2]
[347444167,1735818633619,-150.0,9.782e-05,2]
[347444168,1735818633629,-150.0,9.783e-05,2]
[347444169,1735818633640,-150.0,9.784e-05,2]
[347444170,1735818633651,-150.0,9.785e-05,2]
[347444171,1735818633662,-150.0,9.787e-05,2]
[347444172,1735818633673,-150.0,9.787e-05,2]
[347444173,1735818633683,-150.0,9.788e-05,2]
[347444174,1735818633693,-150.0,9.79e-05,2]
[347444175,1735818633704,-8351.81832456,9.79e-05,2]
[347444176,1735818633717,-435.51999,9.79e-05,2]
[347444177,1735818633729,-745.6524641,9.79e-05,2]
[347444180,1735818638231,-1094.72657998,9.79e-05,2]
[347444181,1735818638276,-747.72488862,9.79e-05,2]
[347444182,1735818638288,-3250.66714693,9.79e-05,2]
[347444183,1735818638299,-4364.89061081,9.79e-05,2]
[347444184,1735818638308,-1272.21431797,9.79e-05,2]
[347444185,1735818638318,-150.0,9.8e-05,2]
[347444186,1735818638332,-150.0,9.802e-05,2]
[347444187,1735818638342,-150.0,9.805e-05,2]
[347444188,1735818638351,-150.0,9.808e-05,2]
[347444189,1735818638360,-150.0,9.809e-05,2]
[347444190,1735818638371,-150.0,9.809e-05,2]
[347444191,1735818638380,-150.0,9.811e-05,2]
[347444192,1735818638389,-150.0,9.811e-05,2]
[347444193,1735818638398,-150.0,9.815e-05,2]
[347444194,1735818638408,-150.0,9.818e-05,2]
[347444195,1735818638418,-150.0,9.82e-05,2]
[347444196,1735818638428,-150.0,9.826e-05,2]
[347444197,1735818638437,-150.0,9.831e-05,2]
[347444198,1735818638447,-150.0,9.832e-05,2]
[347444199,1735818638456,-150.0,9.833e-05,2]
[347444200,1735818638466,-150.0,9.836e-05,2]
[347444201,1735818638475,-1266.0,9.845e-05,2]
[347444202,1735818638484,-1636.22395614,9.845e-05,2]
[347444203,1735818638533,-376.77604386,9.845e-05,2]
[347444204,1735818638542,-529.856,9.845e-05,2]
[347444206,1735818638552,-3773.0,9.845e-05,2]
[347444207,1735818638561,-1256.0,9.845e-05,2]
[347444208,1735818638571,-819.0,9.845e-05,2]
[347444209,1735818638580,-908.0,9.845e-05,2]
[347444210,1735818638590,-3415.706,9.845e-05,2]
[347444212,1735818638599,-150.0,9.845e-05,2]
[347444214,1735818638609,-150.0,9.845e-05,2]
[347444216,1735818638618,-150.0,9.846e-05,2]
[347444218,1735818638628,-150.0,9.85e-05,2]
[347444220,1735818638638,-150.0,9.851e-05,2]
[347444222,1735818638647,-150.0,9.858e-05,2]
[347444224,1735818638657,-150.0,9.861e-05,2]
[347444226,1735818638666,-150.0,9.862e-05,2]
[347444228,1735818638676,-150.0,9.867e-05,2]
[347444230,1735818638685,-150.0,9.869e-05,2]
[347444232,1735818638694,-150.0,9.871e-05,2]
[347444234,1735818638703,-150.0,9.875e-05,2]
[347444236,1735818638713,-150.0,9.876e-05,2]
[347444238,1735818638722,-150.0,9.889e-05,2]